bitfinex/quotes_BTCUSD_20251207
["timestamp","ask_amount","ask_price","bid_price","bid_amount"]
[1765124913060,0.01119106,89357.0,89353.0,0.01119156]
[1765124913260,0.004,89353.0,89351.0,0.01119181]
[1765124913682,0.01119119,89356.0,89351.0,0.01119181]
[1765124913913,0.22382631,89355.0,89351.0,0.01119181]
[1765124914115,0.01119144,89354.0,89351.0,0.01119181]
[1765124914510,0.004,89353.0,89351.0,0.01119181]
[1765124915361,0.01519156,89353.0,89350.0,0.23502999]
[1765124915736,0.01119156,89353.0,89350.0,0.23502999]
[1765124916113,0.01219131,89355.0,89352.0,0.01119169]
[1765124916345,0.01119131,89355.0,89352.0,0.01119169]
[1765124916504,0.003,89353.0,89352.0,0.01119169]
[1765124916721,0.003,89353.0,89352.0,0.23502551]
[1765124916937,0.004,89353.0,89352.0,0.23502551]
[1765124917350,0.001,89353.0,89352.0,0.25722949]
[1765124917552,0.01118993,89366.0,89362.0,0.01119043]
[1765124917971,0.02949981,89367.0,89364.0,0.01119018]
[1765124918393,0.02949981,89367.0,89363.0,0.01119031]
[1765124918595,0.01831,89367.0,89366.0,0.22379876]
[1765124918767,0.01831,89369.0,89366.0,0.01118993]
[1765124918969,0.01831,89369.0,89366.0,0.2349886]
[1765124919296,0.01831,89369.0,89366.0,0.01118993]
[1765124919632,0.01831,89369.0,89367.0,0.22379625]
[1765124920024,0.02248,89368.0,89366.0,0.01118993]
[1765124920192,0.02248,89368.0,89366.0,0.01318993]
[1765124920407,0.02248,89368.0,89366.0,0.01218993]
[1765124920605,0.02248,89368.0,89366.0,0.23598649]
[1765124920786,0.02248,89368.0,89367.0,0.002]
[1765124922477,0.24788709,89368.0,89366.0,0.001]
[1765124922674,0.24788709,89368.0,89351.0,0.23502564]
[1765124922675,0.01119081,89359.0,89351.0,0.23502564]
[1765124922825,0.01119119,89356.0,89351.0,0.01119181]
[1765124923033,0.01119144,89354.0,89350.0,0.01119194]
[1765124923236,0.01119156,89353.0,89350.0,0.01119194]
[1765124923436,0.23502171,89354.0,89350.0,0.01119194]
[1765124923639,0.01119156,89353.0,89350.0,0.01119194]
[1765124923871,0.23502026,89354.0,89349.0,0.01119206]
[1765124924069,0.01119144,89354.0,89350.0,0.01119194]
[1765124924369,0.01119144,89354.0,89351.0,0.01119181]
[1765124924530,0.001,89354.0,89351.0,0.23502802]
[1765124924721,0.01219144,89354.0,89351.0,0.01119181]
[1765124925352,0.01119169,89352.0,89348.0,0.323]
[1765124925569,0.01119181,89351.0,89348.0,0.323]
[1765124925795,0.01119156,89353.0,89349.0,0.2350334]
[1765124926804,0.004,89351.0,89349.0,0.01119206]
[1765124926972,0.001,89351.0,89349.0,0.01119206]
[1765124927176,0.01119169,89352.0,89349.0,0.01119206]
[1765124928398,0.005,89353.0,89350.0,0.01119194]
[1765124928603,0.01119169,89352.0,89348.0,0.01119219]
[1765124928802,0.03353194,89350.0,89346.0,0.01119244]
[1765124929008,0.01119206,89349.0,89346.0,0.01119244]
[1765124929221,0.03353194,89350.0,89347.0,0.01119231]
[1765124929414,0.01119219,89348.0,89344.0,0.2350442]
[1765124929612,0.01119219,89348.0,89345.0,0.01119256]
[1765124929946,0.23503645,89348.0,89344.0,0.22385386]
[1765124930296,0.01119231,89347.0,89343.0,0.01119281]
[1765124930498,0.01119231,89347.0,89344.0,0.323]
[1765124930703,0.01119231,89347.0,89344.0,0.33419269]
[1765124931285,0.01119231,89347.0,89344.0,0.323]
[1765124931503,0.002,89348.0,89346.0,0.22384872]
[1765124931923,0.002,89348.0,89345.0,0.23504313]
[1765124932138,0.002,89348.0,89345.0,0.23504368]
[1765124932343,0.01119194,89350.0,89347.0,0.01119231]
[1765124932758,0.01119169,89352.0,89348.0,0.01119219]
[1765124933772,0.004,89350.0,89348.0,0.01119219]
[1765124934533,0.01519194,89350.0,89347.0,0.01119231]
[1765124934666,0.01219194,89350.0,89347.0,0.01119231]
[1765124935114,0.01119206,89349.0,89345.0,0.01119256]
[1765124935274,0.01119219,89348.0,89345.0,0.01119256]
[1765124935475,0.01119231,89347.0,89344.0,0.323]
[1765124935689,0.02148,89345.0,89343.0,0.00039363]
[1765124935890,0.02148,89344.0,89343.0,0.00039363]
[1765124937161,0.02248,89344.0,89343.0,0.00039363]
[1765124938760,0.001,89344.0,89343.0,0.00039363]
[1765124941258,0.001,89344.0,89343.0,0.00268361]
[1765124941674,0.001,89344.0,89343.0,0.00039363]
[1765124941978,0.02248,89344.0,89343.0,0.00039363]
[1765124942121,0.05588,89344.0,89343.0,0.00039363]
[1765124943997,0.02248,89344.0,89343.0,0.00039363]
[1765124945182,0.001,89344.0,89343.0,0.22425]
[1765124945831,0.001,89344.0,89343.0,0.24645398]
[1765124946660,0.001,89344.0,89343.0,0.56945398]
[1765124949551,0.00161287,89368.0,89367.0,0.24600023]
[1765124950620,0.00161287,89368.0,89367.0,0.02220398]
[1765124951699,0.00161287,89368.0,89367.0,0.002]
[1765124952109,0.00161287,89368.0,89367.0,0.003]
[1765124952861,0.02414287,89368.0,89367.0,0.003]
[1765124955072,0.06552893,89368.0,89367.0,0.003]
[1765124958529,0.10028016,89368.0,89367.0,0.003]
[1765124965490,0.11794016,89368.0,89367.0,0.003]
[1765124968795,0.04861893,89368.0,89367.0,0.003]
[1765124969006,0.04180287,89368.0,89367.0,0.003]
[1765124969198,0.05952287,89368.0,89367.0,0.003]
[1765124969972,0.01927287,89368.0,89367.0,0.003]
[1765124970102,0.00161287,89368.0,89367.0,0.003]
[1765124973208,0.00161287,89368.0,89367.0,0.22679625]
[1765124973839,0.01772,89377.0,89369.0,0.01118956]
[1765124974076,0.01772,89377.0,89373.0,0.01118906]
[1765124974483,0.01772,89377.0,89374.0,0.01118893]
[1765124974686,0.23496291,89376.0,89373.0,0.01118906]
[1765124974860,0.01118868,89376.0,89373.0,0.01118906]
[1765124975274,0.01128559,89376.0,89373.0,0.01118906]
[1765124975870,0.01118881,89375.0,89371.0,0.01118931]
[1765124976100,0.23496748,89375.0,89371.0,0.01118931]
[1765124976297,0.01118881,89375.0,89372.0,0.01118918]
[1765124976622,0.01118881,89375.0,89372.0,0.23497245]
[1765124977235,0.001,89375.0,89373.0,0.234968]
[1765124977639,9.691e-05,89376.0,89373.0,0.234968]
[1765124977815,0.001,89375.0,89373.0,0.234968]
[1765124978027,0.001,89375.0,89374.0,0.22377872]
[1765124979182,9.691e-05,89376.0,89375.0,0.02220398]
[1765124980643,0.00209691,89376.0,89375.0,0.02220398]
[1765124982143,9.691e-05,89376.0,89375.0,0.02220398]
[1765124982343,0.00109691,89376.0,89375.0,0.02220398]
[1765124984062,0.00109691,89376.0,89374.0,0.24080995]
[1765124984264,0.00109691,89376.0,89375.0,0.02220398]
[1765124984625,0.00109691,89376.0,89375.0,0.0245818]
[1765124985043,0.00109691,89376.0,89375.0,0.02682351]
[1765124985627,0.00109691,89376.0,89375.0,0.03284876]
[1765124986034,0.00109691,89376.0,89375.0,0.35584876]
[1765124986231,0.00109691,89376.0,89375.0,0.3475818]
[1765124992315,0.00109691,89376.0,89375.0,0.34240905]
[1765124995864,0.00109691,89376.0,89375.0,0.32537782]
[1765125001142,0.00109691,89376.0,89375.0,0.3475818]
[1765125001947,0.00109691,89376.0,89375.0,0.32537782]
[1765125002200,0.00109691,89376.0,89375.0,0.00237782]
[1765125002372,0.05394691,89376.0,89375.0,0.00237782]
[1765125002571,0.05555978,89376.0,89375.0,0.00237782]
[1765125003783,0.07259101,89376.0,89375.0,0.00237782]
[1765125003935,0.07159101,89376.0,89375.0,0.00337782]
[1765125004489,0.07159101,89376.0,89375.0,0.00537782]
[1765125004490,0.00170978,89376.0,89375.0,0.00537782]
[1765125004879,9.691e-05,89376.0,89375.0,0.00537782]
[1765125005432,9.691e-05,89376.0,89375.0,0.0275818]
[1765125005633,9.691e-05,89376.0,89375.0,0.00537782]
[1765125007348,9.691e-05,89376.0,89375.0,0.00761889]
[1765125007498,9.691e-05,89376.0,89375.0,0.02982287]
[1765125007824,9.691e-05,89376.0,89375.0,0.0275818]
[1765125011258,9.691e-05,89376.0,89375.0,0.35393944]
[1765125011453,9.691e-05,89376.0,89375.0,0.3505818]
[1765125012238,9.691e-05,89376.0,89375.0,0.3495818]
[1765125013223,9.691e-05,89376.0,89375.0,0.3475818]
[1765125013429,0.00109691,89376.0,89375.0,0.3475818]
[1765125015011,0.00109691,89376.0,89375.0,0.37642835]
[1765125017167,0.00109691,89376.0,89375.0,0.41625447]
[1765125017379,0.00109691,89376.0,89375.0,0.32537782]
[1765125020181,0.00109691,89376.0,89375.0,0.3475818]
[1765125025342,0.00109691,89376.0,89375.0,0.32537782]
[1765125025543,0.00109691,89376.0,89375.0,0.3475818]
[1765125026714,0.00109691,89376.0,89375.0,0.32537782]
[1765125027247,0.05276691,89376.0,89375.0,0.00237782]
[1765125027459,0.05437978,89376.0,89375.0,0.00237782]
[1765125028746,0.05437978,89376.0,89375.0,0.00337782]
[1765125029121,0.05337978,89376.0,89375.0,0.00337782]
[1765125029809,0.05537978,89376.0,89375.0,0.00237782]
[1765125030233,0.06037978,89376.0,89375.0,0.00237782]
[1765125030427,0.05537978,89376.0,89375.0,0.00237782]
[1765125030626,0.07509978,89376.0,89375.0,0.00237782]
[1765125030865,0.09530376,89376.0,89375.0,0.00237782]
[1765125031513,0.07309978,89376.0,89375.0,0.00237782]
[1765125033893,0.05537978,89376.0,89375.0,0.00237782]
[1765125034093,0.07309978,89376.0,89375.0,0.00237782]
[1765125035194,0.07309978,89376.0,89375.0,0.00337782]
[1765125036055,0.07109978,89376.0,89375.0,0.00337782]
[1765125036253,0.07109978,89376.0,89375.0,0.00537782]
[1765125038016,0.02108691,89376.0,89375.0,0.00537782]
[1765125038234,9.691e-05,89376.0,89375.0,0.00537782]
[1765125041124,9.691e-05,89376.0,89375.0,0.0275818]
[1765125045719,9.691e-05,89376.0,89375.0,0.3505818]
[1765125046312,9.691e-05,89376.0,89375.0,0.3495818]
[1765125046514,9.691e-05,89376.0,89375.0,0.3485818]
[1765125046836,9.691e-05,89376.0,89375.0,0.3495818]
[1765125047045,9.691e-05,89376.0,89375.0,0.3485818]
[1765125047237,9.691e-05,89376.0,89375.0,0.38840792]
[1765125047442,9.691e-05,89376.0,89375.0,0.3893451]
[1765125047809,9.691e-05,89376.0,89375.0,0.3883451]
[1765125048009,9.691e-05,89376.0,89375.0,0.3873451]
[1765125048203,9.691e-05,89376.0,89375.0,0.3893451]
[1765125048447,9.691e-05,89376.0,89375.0,0.3913451]
[1765125048626,9.691e-05,89376.0,89375.0,0.3893451]
[1765125048972,9.691e-05,89376.0,89375.0,0.3923451]
[1765125049346,9.691e-05,89376.0,89375.0,0.3525818]
[1765125050130,9.691e-05,89376.0,89375.0,0.3749918]
[1765125050331,9.691e-05,89376.0,89375.0,0.3525818]
[1765125057376,0.0111838,89415.0,89411.0,0.0111843]
[1765125057377,0.01616,89414.0,89411.0,0.0111843]
[1765125057706,0.00681606,89413.0,89412.0,0.22368362]
[1765125057903,0.01786974,89414.0,89412.0,0.22368362]
[1765125058547,0.02086974,89414.0,89412.0,0.22368362]
[1765125058752,0.00170974,89414.0,89412.0,0.22368362]
[1765125059062,0.00470974,89414.0,89412.0,0.22368362]
[1765125059266,0.00470974,89414.0,89412.0,0.2458876]
[1765125059467,0.00170974,89414.0,89412.0,0.2458876]
[1765125059675,0.00209687,89414.0,89412.0,0.2458876]
[1765125060968,9.687e-05,89414.0,89413.0,0.02220398]
[1765125061184,9.687e-05,89414.0,89413.0,0.34520398]
[1765125061456,0.00209687,89414.0,89413.0,0.32713243]
[1765125061656,0.00209687,89414.0,89413.0,0.34523567]
[1765125061958,9.687e-05,89414.0,89413.0,0.34523567]
[1765125062322,0.00309687,89414.0,89413.0,0.34523567]
[1765125062524,0.00309687,89414.0,89413.0,0.323]
[1765125062721,0.00309687,89414.0,89413.0,0.34523567]
[1765125062922,0.00309687,89414.0,89413.0,0.34646236]
[1765125064020,9.687e-05,89414.0,89413.0,0.34646236]
[1765125064410,0.00109687,89414.0,89413.0,0.34646236]
[1765125064775,0.00109687,89414.0,89413.0,0.34746236]
[1765125068616,0.00109687,89414.0,89413.0,0.32522669]
[1765125068837,0.00109687,89414.0,89413.0,0.00222669]
[1765125068838,0.05422974,89414.0,89413.0,0.00222669]
[1765125069581,0.05422974,89414.0,89413.0,0.00122669]
[1765125070186,0.05322974,89414.0,89413.0,0.00122669]
[1765125070657,0.05922974,89414.0,89413.0,0.00122669]
[1765125070979,0.06122974,89414.0,89413.0,0.00122669]
[1765125071975,0.17868041,89414.0,89413.0,0.00122669]
[1765125073173,0.10046495,89414.0,89413.0,0.00122669]
[1765125073350,0.09446495,89414.0,89413.0,0.00122669]
[1765125073529,0.07326097,89414.0,89413.0,0.00122669]
[1765125073972,0.07126097,89414.0,89413.0,0.00122669]
[1765125074167,0.09446495,89414.0,89413.0,0.00122669]
[1765125075306,0.50264327,89414.0,89413.0,0.00122669]
[1765125075486,0.50264327,89414.0,89365.0,0.05091854]
[1765125075487,0.01118943,89370.0,89365.0,0.05091854]
[1765125075686,0.22378373,89372.0,89367.0,0.23498504]
[1765125075687,0.02002,89372.0,89367.0,0.23498504]
[1765125075890,0.01623,89369.0,89368.0,0.01118968]
[1765125076090,0.01118843,89378.0,89375.0,0.01118881]
[1765125076415,0.01118843,89378.0,89370.0,0.01118943]
[1765125076416,0.01118893,89374.0,89370.0,0.01118943]
[1765125076584,0.02002,89371.0,89368.0,0.01118968]
[1765125076750,0.001,89370.0,89368.0,0.01118968]
[1765125076950,0.02002,89371.0,89368.0,0.01118968]
[1765125077191,0.01118943,89370.0,89367.0,0.01118981]
[1765125077393,0.25500343,89368.0,89367.0,9.691e-05]
[1765125077759,0.28601343,89368.0,89367.0,9.691e-05]
[1765125078795,0.30362164,89368.0,89367.0,9.691e-05]
[1765125078998,0.28601343,89368.0,89367.0,0.00209691]
[1765125079210,0.30983028,89368.0,89367.0,0.00209691]
[1765125079568,0.30983028,89368.0,89367.0,0.00509691]
[1765125079771,0.30983028,89368.0,89367.0,0.00209691]
[1765125080220,0.31083028,89368.0,89367.0,0.00809691]
[1765125080431,0.43368167,89368.0,89367.0,9.691e-05]
[1765125081021,0.43368167,89368.0,89367.0,0.00509691]
[1765125081186,0.43368167,89368.0,89367.0,9.691e-05]
[1765125081594,0.43368167,89368.0,89367.0,0.00409691]
[1765125083065,0.75668167,89368.0,89367.0,0.00409691]
[1765125083217,1.71552067,89368.0,89367.0,0.00409691]
[1765125083418,1.71552067,89368.0,89367.0,0.00549019]
[1765125083831,1.71552067,89368.0,89367.0,0.00149019]
[1765125084033,1.71652067,89368.0,89367.0,0.00249019]
[1765125084444,1.71552067,89368.0,89367.0,0.00149019]
[1765125084635,1.72352067,89368.0,89367.0,0.00249019]
[1765125084985,1.72752067,89368.0,89367.0,0.00249019]
[1765125085188,1.72752067,89368.0,89367.0,1.9e-07]
[1765125085526,0.82083629,89368.0,89367.0,1.9e-07]
[1765125085737,0.80365529,89368.0,89367.0,1.9e-07]
[1765125086138,0.76333628,89368.0,89367.0,1.9e-07]
[1765125086353,0.7411323,89368.0,89367.0,1.9e-07]
[1765125086592,0.7371323,89368.0,89367.0,1.9e-07]
[1765125086832,0.01119331,89339.0,89333.0,0.01119407]
[1765125087140,0.01119319,89340.0,89337.0,0.01119357]
[1765125087141,0.02002,89340.0,89337.0,0.01119357]
[1765125087321,0.01119294,89342.0,89338.0,0.23506141]
[1765125087464,0.01623,89339.0,89338.0,0.23506141]
[1765125087912,0.03625,89339.0,89338.0,0.01119344]
[1765125088090,0.01119369,89336.0,89333.0,0.00039363]
[1765125088296,0.02002,89334.0,89333.0,0.00039363]
[1765125088703,0.05103,89334.0,89333.0,0.00039363]
[1765125089494,0.05103,89334.0,89333.0,0.00339363]
[1765125089742,0.05103,89334.0,89333.0,0.00039363]
[1765125090185,0.05203,89334.0,89333.0,0.00039363]
[1765125090490,0.002,89334.0,89333.0,0.00039363]
[1765125091515,0.02202,89334.0,89333.0,0.00039363]
[1765125091719,0.05303,89334.0,89333.0,0.00039363]
[1765125094006,0.27690892,89334.0,89333.0,0.00039363]
[1765125094448,0.27690892,89334.0,89333.0,0.0014241]
[1765125095329,0.05303,89334.0,89333.0,0.0014241]
[1765125095930,0.29462892,89334.0,89333.0,0.0014241]
[1765125097034,0.07075,89334.0,89333.0,0.0014241]
[1765125097457,0.07756606,89334.0,89333.0,0.0014241]
[1765125098699,0.30144498,89334.0,89333.0,0.0014241]
[1765125098824,0.07075,89334.0,89333.0,0.0014241]
[1765125099026,0.07756606,89334.0,89333.0,0.0014241]
[1765125099229,0.30144498,89334.0,89333.0,0.0014241]
[1765125099429,0.29462892,89334.0,89333.0,0.0014241]
[1765125099628,0.07075,89334.0,89333.0,0.0014241]
[1765125100881,0.07756606,89334.0,89333.0,0.0014241]
[1765125107526,0.09977004,89334.0,89333.0,0.0014241]
[1765125107728,0.13843119,89334.0,89333.0,0.0014241]
[1765125107923,0.09977004,89334.0,89333.0,0.0014241]
[1765125108319,0.08804183,89334.0,89333.0,0.0014241]
[1765125108899,0.09777004,89334.0,89333.0,0.0014241]
[1765125109190,0.10824614,89334.0,89333.0,0.0024241]
[1765125109554,0.10824614,89334.0,89333.0,0.0064241]
[1765125109962,0.13238127,89334.0,89333.0,0.0024241]
[1765125110164,0.10824614,89334.0,89333.0,0.0034241]
[1765125110505,0.20099697,89334.0,89333.0,0.0024241]
[1765125111086,0.2251321,89334.0,89333.0,0.0024241]
[1765125111311,0.21831604,89334.0,89333.0,0.0024241]
[1765125112089,0.24845188,89334.0,89333.0,0.0024241]
[1765125112470,0.21831604,89334.0,89333.0,0.0024241]
[1765125113102,0.19418091,89334.0,89333.0,0.0024241]
[1765125113309,0.20099697,89334.0,89333.0,0.0024241]
[1765125114063,0.10824614,89334.0,89333.0,0.0024241]
[1765125114913,0.0615061,89334.0,89333.0,0.0024241]
[1765125115127,0.06832216,89334.0,89333.0,0.0024241]
[1765125115323,0.08604216,89334.0,89333.0,0.0024241]
[1765125121887,0.08535339,89334.0,89333.0,0.0024241]
[1765125122096,0.10307339,89334.0,89333.0,0.0024241]
[1765125123411,0.09625733,89334.0,89333.0,0.0024241]
[1765125124232,0.10307339,89334.0,89333.0,0.0024241]
[1765125126295,0.01534,89335.0,89334.0,0.22387892]
[1765125126447,0.01623,89339.0,89334.0,0.22387892]
[1765125126635,0.01534,89344.0,89343.0,0.22385637]
[1765125127006,0.01534,89344.0,89341.0,0.23505332]
[1765125127178,0.01534,89344.0,89343.0,0.22385637]
[1765125127530,0.01534,89344.0,89341.0,0.23505332]
[1765125127730,0.02048,89342.0,89339.0,0.23505731]
[1765125127934,0.02048,89342.0,89340.0,0.01119319]
[1765125128574,0.02048,89342.0,89339.0,0.01119331]
[1765125128773,0.03167294,89342.0,89341.0,0.005]
[1765125128984,0.02048,89342.0,89339.0,0.23505956]
[1765125129176,0.02048,89340.0,89339.0,0.23505956]
[1765125129503,0.02048,89340.0,89336.0,0.01119369]
[1765125129649,0.03167319,89340.0,89337.0,0.01119357]
[1765125130487,0.02048,89340.0,89337.0,0.01119357]
[1765125130813,0.22387892,89334.0,89333.0,0.00039363]
[1765125130979,0.23506936,89336.0,89333.0,0.00039363]
[1765125131152,0.01486,89335.0,89333.0,0.00039363]
[1765125131352,0.02048,89334.0,89333.0,0.00039363]
[1765125131590,0.05121,89334.0,89333.0,0.00039363]
[1765125132002,0.05902606,89334.0,89333.0,0.00039363]
[1765125132526,0.14374963,89334.0,89333.0,0.0014241]
[1765125132831,0.05902606,89334.0,89333.0,0.0014241]
[1765125133007,0.08123004,89334.0,89333.0,0.0014241]
[1765125133208,0.08023004,89334.0,89333.0,0.0014241]
[1765125133578,0.08023004,89334.0,89333.0,0.0044241]
[1765125133830,0.46575303,89334.0,89333.0,0.0044241]
[1765125134028,0.56864203,89334.0,89333.0,0.0044241]
[1765125134378,0.56864203,89334.0,89333.0,0.0014241]
[1765125134583,0.56864203,89334.0,89333.0,0.0024241]
[1765125134584,0.45893697,89334.0,89333.0,0.0024241]
[1765125136386,0.43673299,89334.0,89333.0,0.0024241]
[1765125136793,0.45445299,89334.0,89333.0,0.0024241]
[1765125137043,0.06893,89334.0,89333.0,0.0024241]
[1765125137248,0.07574606,89334.0,89333.0,0.0024241]
[1765125137810,0.47790529,89334.0,89333.0,0.0024241]
[1765125138024,0.53361222,89334.0,89333.0,0.0024241]
[1765125139883,0.47665697,89334.0,89333.0,0.0024241]
[1765125144720,0.48712478,89334.0,89333.0,0.0024241]
[1765125145347,0.48712478,89334.0,89333.0,0.0014241]
[1765125145755,0.02220398,89321.0,89320.0,0.0004]
[1765125145953,0.08167004,89321.0,89320.0,0.0004]
[1765125146177,0.12735127,89321.0,89320.0,0.0004]
[1765125146354,0.15383957,89321.0,89320.0,0.0004]
[1765125146557,0.12735127,89321.0,89320.0,0.0004]
[1765125146789,0.10514729,89321.0,89320.0,0.0004]
[1765125147271,0.10714729,89321.0,89320.0,0.0004]
[1765125147983,0.16967028,89321.0,89320.0,0.0004]
[1765125148330,0.17067028,89321.0,89320.0,0.0004]
[1765125148918,0.16767028,89321.0,89320.0,0.0004]
[1765125149158,0.16767028,89321.0,89320.0,0.0014]
[1765125149373,0.16767028,89321.0,89320.0,0.0044]
[1765125149551,0.14382299,89321.0,89320.0,0.0044]
[1765125150071,0.12610299,89321.0,89320.0,0.0044]
[1765125150294,0.46682299,89321.0,89320.0,0.0044]
[1765125150517,0.38658,89321.0,89320.0,0.0044]
[1765125150719,0.42133123,89321.0,89320.0,0.0044]
[1765125150849,0.4043,89321.0,89320.0,0.0044]
[1765125151412,0.4043,89321.0,89320.0,0.00479414]
[1765125152363,0.37565,89321.0,89320.0,0.00479414]
[1765125152559,0.01453,89325.0,89323.0,0.22390451]
[1765125152766,0.01453,89325.0,89322.0,0.23510445]
[1765125152967,0.0204,89323.0,89320.0,0.0044]
[1765125153171,0.0204,89321.0,89320.0,0.0044]
[1765125153673,0.01453,89325.0,89324.0,0.22390398]
[1765125153981,0.01453,89325.0,89322.0,0.003]
[1765125153982,0.04612507,89325.0,89322.0,0.003]
[1765125154208,0.03159532,89323.0,89320.0,0.0014]
[1765125154486,0.0204,89321.0,89320.0,0.0004]
[1765125154905,0.04905,89321.0,89320.0,0.0004]
[1765125155108,0.33753,89325.0,89324.0,0.22390398]
[1765125155312,0.02865,89331.0,89330.0,0.22388895]
[1765125155509,0.01453,89332.0,89331.0,0.01119432]
[1765125155716,0.01453,89332.0,89329.0,0.23508602]
[1765125155999,0.01453,89332.0,89330.0,0.2238866]
[1765125156640,0.01753,89332.0,89330.0,0.2238866]
[1765125156833,0.01453,89332.0,89330.0,0.2238866]
[1765125157078,0.01453,89332.0,89329.0,0.23508602]
[1765125157312,0.0204,89330.0,89329.0,0.23508602]
[1765125157779,0.01853,89332.0,89331.0,0.22388644]
[1765125158412,0.01453,89332.0,89331.0,0.22388644]
[1765125158626,0.001,89330.0,89329.0,0.23508567]
[1765125158830,0.01119457,89329.0,89322.0,0.25733913]
[1765125159034,0.0204,89324.0,89320.0,0.23550742]
[1765125159210,0.0204,89323.0,89320.0,0.23550742]
[1765125159596,0.0204,89323.0,89320.0,0.0115957]
[1765125159980,0.03159532,89323.0,89320.0,0.0004]
[1765125160410,0.0204,89321.0,89320.0,0.0004]
[1765125160745,0.04905,89321.0,89320.0,0.0004]
[1765125160948,0.13021709,89321.0,89320.0,0.0004]
[1765125161709,0.15242107,89321.0,89320.0,0.0004]
[1765125161970,0.47542107,89321.0,89320.0,0.0004]
[1765125162294,0.48242107,89321.0,89320.0,0.0004]
[1765125162839,0.47642107,89321.0,89320.0,0.0004]
[1765125163255,0.56643962,89321.0,89320.0,0.0004]
[1765125163656,0.48342107,89321.0,89320.0,0.0004]
[1765125163862,0.48242107,89321.0,89320.0,0.0004]
[1765125164083,0.48342107,89321.0,89320.0,0.0004]
[1765125164286,0.48342107,89321.0,89320.0,0.00079414]
[1765125164491,0.47642107,89321.0,89320.0,0.00079414]
[1765125164641,0.47542107,89321.0,89320.0,0.00079414]
[1765125165035,0.47742107,89321.0,89320.0,0.00079414]
[1765125165249,0.47642107,89321.0,89320.0,0.00079414]
[1765125165501,0.47842107,89321.0,89320.0,0.00079414]
[1765125167320,0.45621709,89321.0,89320.0,0.00079414]
[1765125167551,0.47393709,89321.0,89320.0,0.00079414]
[1765125168226,0.47093709,89321.0,89320.0,0.00079414]
[1765125168662,0.47093709,89321.0,89320.0,0.00279414]
[1765125168915,0.47093709,89321.0,89320.0,0.00079414]
[1765125170586,0.58064215,89321.0,89320.0,0.00079414]
[1765125171060,0.47093709,89321.0,89320.0,0.00079414]
[1765125171821,0.49314107,89321.0,89320.0,0.00179414]
[1765125172278,0.49314107,89321.0,89320.0,0.00379414]
[1765125173291,0.47093709,89321.0,89320.0,0.00379414]
[1765125173484,0.47093709,89321.0,89320.0,0.00279414]
[1765125173893,0.47093709,89321.0,89320.0,0.00079414]
[1765125175026,0.53033949,89321.0,89320.0,0.00079414]
[1765125175413,0.45321709,89321.0,89320.0,0.00079414]
[1765125175613,0.47093709,89321.0,89320.0,0.00079414]
[1765125177241,0.47093709,89321.0,89320.0,0.00279414]
[1765125184804,0.23509869,89325.0,89320.0,0.00279414]
[1765125184944,0.01119532,89323.0,89320.0,0.0024]
[1765125185160,0.23510236,89323.0,89320.0,0.0024]
[1765125185351,0.26439236,89323.0,89320.0,0.0024]
[1765125185532,0.26439235,89323.0,89320.0,0.0024]
[1765125185739,0.04048532,89323.0,89320.0,0.0024]
[1765125186140,0.01119532,89323.0,89320.0,0.0024]
[1765125186346,0.01119532,89323.0,89320.0,0.0115957]
[1765125186541,0.01119532,89323.0,89320.0,0.23550943]
[1765125186741,0.02929,89326.0,89322.0,0.23510445]
[1765125186975,0.01843,89323.0,89322.0,0.01119545]
[1765125187372,0.323,89328.0,89324.0,0.01119519]
[1765125187573,0.01772,89329.0,89328.0,0.01119469]
[1765125187789,0.01119444,89330.0,89325.0,0.25733003]
[1765125188157,0.01119457,89329.0,89326.0,0.01119494]
[1765125188634,0.01119432,89331.0,89327.0,0.01119482]
[1765125188836,0.01119444,89330.0,89327.0,0.01119482]
[1765125189065,0.01843,89328.0,89327.0,0.01119482]
[1765125190610,0.01843,89328.0,89327.0,0.23509129]
[1765125190779,0.01453,89332.0,89331.0,0.22388644]
[1765125190981,0.01453,89332.0,89329.0,0.01119457]
[1765125191788,0.01453,89332.0,89330.0,0.22388895]
[1765125192642,0.01553,89332.0,89330.0,0.22388895]
[1765125192791,0.01853,89332.0,89330.0,0.22388895]
[1765125193154,0.01853,89332.0,89322.0,0.02223567]
[1765125193155,0.01119469,89328.0,89322.0,0.02223567]
[1765125193467,0.01888,89321.0,89320.0,0.0115957]
[1765125193647,0.01888,89321.0,89320.0,0.0004]
[1765125193855,0.06565511,89321.0,89320.0,0.0004]
[1765125194083,0.37936893,89321.0,89320.0,0.0004]
[1765125194235,0.37255287,89321.0,89320.0,0.0004]
[1765125195838,0.37355287,89321.0,89320.0,0.0004]
[1765125196041,0.01988,89321.0,89320.0,0.0004]
[1765125196241,0.001,89321.0,89320.0,0.0004]
[1765125196630,0.003,89321.0,89320.0,0.0004]
[1765125198201,0.003,89321.0,89320.0,0.02263567]
[1765125198418,0.003,89321.0,89320.0,0.0004]
[1765125199310,0.02188,89321.0,89320.0,0.0004]
[1765125199879,0.003,89321.0,89320.0,0.0004]
[1765125200520,0.02188,89321.0,89320.0,0.0004]
[1765125200685,0.02188,89321.0,89320.0,0.22431401]
[1765125200880,0.02188,89321.0,89320.0,0.0004]
[1765125201459,0.02188,89321.0,89320.0,0.00079414]
[1765125202026,0.05094,89321.0,89320.0,0.00079414]
[1765125203261,0.02188,89321.0,89320.0,0.00079414]
[1765125204745,0.003,89321.0,89320.0,0.00079414]
[1765125204965,0.003,89321.0,89320.0,0.02302981]
[1765125205143,0.003,89321.0,89320.0,0.00079414]
[1765125205748,0.003,89321.0,89320.0,0.04006104]
[1765125205920,0.001,89321.0,89320.0,0.07997972]
[1765125206117,0.01119244,89346.0,89342.0,0.22385887]
[1765125206877,0.01623,89350.0,89342.0,0.22385887]
[1765125207051,0.01446,89349.0,89346.0,0.23503961]
[1765125207863,0.01446,89349.0,89348.0,0.22384384]
[1765125208070,0.01446,89349.0,89347.0,0.22384397]
[1765125209764,0.01446,89349.0,89347.0,0.22484397]
[1765125210366,0.24272384,89348.0,89347.0,0.001]
[1765125210669,0.04794,89348.0,89347.0,0.005]
[1765125211087,0.27178384,89348.0,89347.0,0.005]
[1765125211400,0.27178384,89348.0,89347.0,0.004]
[1765125211826,0.27339671,89348.0,89347.0,0.005]
[1765125212348,0.27339671,89348.0,89347.0,0.001]
[1765125212550,0.27339671,89348.0,89347.0,0.006]
[1765125213286,0.70132293,89348.0,89347.0,0.006]
[1765125213762,0.76384592,89348.0,89347.0,0.006]
[1765125214187,0.7860499,89348.0,89347.0,0.006]
[1765125214317,0.7860499,89348.0,89347.0,0.005]
[1765125215192,0.22389897,89326.0,89322.0,0.01119545]
[1765125215450,0.03334,89326.0,89322.0,0.2351032]
[1765125216225,0.03434,89326.0,89322.0,0.2351032]
[1765125216736,0.0654,89326.0,89322.0,0.2351032]